Cogmind - Beta 13 @@@ ROGUE MODE // 2024.03.05 @ 14:23:19 Player: ktur Result: Destroyed by NK-PWH(R) with Subdweller Machine Gun Performance ------------- Evolutions (0) 0 Regions Visited (2) 400 Robots Destroyed (39) 195 Value Destroyed (855) 855 Prototype IDs (0) 0 Alien Tech Used (0) 0 Bonus (-162) -162 TOTAL SCORE: 1288 Bonus ------- Friendly Fire -162 Cogmind --------- Core Integrity 0/250 Matter 185/300 Energy 170/170 System Corruption 0% Temperature Cool (0) Movement Treading (160) Location -10/Subcaves Parts ------- > --- POWER (1) -------- Makeshift Power Source > --- PROPULSION (2) --- Improved Treads Improved Treads > --- UTILITY (2) ------ Large Storage Unit > --- WEAPON (2) ------- Subdweller Shrapnel Launcher Makeshift Axe > --- INVENTORY (15) --- Subdweller Power Source Makeshift Leg Makeshift Leg Myomer Leg Myomer Leg Scrap Shield Hacking Suite Hacking Suite Trap Extractor (0/4) Trap Extractor (0/4) Subdweller Machine Gun Barrage Gun Battle Cannon Subdweller Shrapnel Launcher Peak State ------------ > --- POWER ------------ Makeshift Power Source > --- PROPULSION ------- Improved Treads Improved Treads > --- UTILITY ---------- Large Storage Unit Trap Extractor > --- WEAPON ----------- Subdweller Shrapnel Launcher Makeshift Axe > --- INVENTORY -------- Makeshift Leg Myomer Leg Myomer Leg Subdweller Monowheel Seismic Detector Scrap Shield Hacking Suite Hacking Suite Trap Extractor Battle Rifle Subdweller Machine Gun Barrage Gun Battle Cannon Subdweller Shrapnel Launcher [Rating: 21] Favorites ----------- Power Light Ion Engine Engine Light Ion Engine Propulsion Improved Treads Treads Improved Treads Wheel Subdweller Monowheel Utility Large Storage Unit Device Seismic Detector Storage Large Storage Unit Protection Light Armor Plating Weapon Beam Cannon Energy Gun Small Laser Energy Cannon Beam Cannon Ballistic Gun Battle Rifle Ballistic Cannon Light Cannon Launcher Subdweller Shrapnel Launcher Special Weapon Mining Laser Slashing Weapon Makeshift Axe Special Melee Weapon Datajack Build | -11 -10 -10 ------- Run | Yrd Mat Sub Slots Evolved . | . . . Power . | . . . Propulsion . | . . . Utility . | . . . Weapon . | . . . Parts Attached 52 | 7 21 24 Power 3 | 1 1 1 Engine 3 | 1 1 1 Core . | . . . Reactor . | . . . Propulsion 7 | 2 2 3 Treads 6 | 2 2 2 Leg . | . . . Wheel 1 | . . 1 Hover . | . . . Flight . | . . . Utility 20 | 2 9 9 Device 14 | 1 7 6 Storage 3 | 1 1 1 Processor . | . . . Hackware . | . . . Protection 3 | . 1 2 Artifact . | . . . Weapon 22 | 2 9 11 Energy Gun 1 | 1 . . Energy Cannon 4 | . 3 1 Ballistic Gun 4 | 1 1 2 Ballistic Cannon 5 | . 2 3 Launcher 4 | . 2 2 Special Weapon 1 | . . 1 Impact Weapon . | . . . Slashing Weapon 2 | . . 2 Piercing Weapon . | . . . Special Melee Weapon 1 | . 1 . Unidentified Prototypes . | . . . Parts Lost 5 | . . 5 Power 1 | . . 1 Propulsion 1 | . . 1 Utility 2 | . . 2 Weapon 1 | . . 1 Highest Loss Streak 2 | . . 2 To Critical Strikes . | . . . Average Slot Usage (%) 99 | . 100 98 Engine 13 | . 14 13 Treads 27 | . 28 27 Device 12 | . 12 13 Storage 13 | . 14 13 Energy Cannon 7 | . 13 3 Ballistic Gun 5 | . 5 5 Ballistic Cannon 6 | . 6 6 Launcher 3 | . . 5 Slashing Weapon 3 | . . 6 Naked Turns . | . . . Heaviest Build 37 | 11 30 37 Greatest Support 46 | 40 46 46 Greatest Overweight (x) 1 | . . 1 Average Overweight (x) . | . . . Largest Inventory Capacity 15 | 8 15 15 Average Capacity 14 | 6 14 14 Most Carried 15 | 5 15 15 Average Carried 14 | 3 13 14 Final Capacity 15 | 8 15 15 Final Carried 15 | 5 15 15 Class Distribution -------------------- 90% | Mutant 9% | Trapper-Mutant Dominant Class ---------------- Mutant | -10/Materials Mutant | -10/Subcaves Resources | -11 -10 -10 ----------- Run | Yrd Mat Sub Matter Collected 1130 | 236 285 609 Remotely . | . . . Salvage Created 889 | 30 500 359 Parts 75 | 10 36 29 Haulers Intercepted 2 | . 2 . Recyclers Shooed 2 | . 2 . Parts Field Recycled . | . . . Retrieved Matter . | . . . Parts Self-Destructed 13 | . . 13 Prevented . | . . . Kills | -11 -10 -10 ------- Run | Yrd Mat Sub Combat Hostiles Destroyed 28 | . 12 16 Melee 2 | . . 2 Cannons 9 | . 6 3 AOE 17 | . 6 11 Classes Destroyed 11 | 1 7 3 Worker 2 | . 2 . Builder 1 | . 1 . Tunneler 2 | 2 . . Hauler 2 | . 2 . Recycler 1 | . 1 . Operator 2 | . 2 . Swarmer 11 | . 3 8 Grunt 9 | . 9 . Artisan 1 | . . 1 Cobbler 1 | . . 1 Subdweller 8 | . . 8 Thug 1 | . . 1 Best Kill Streak 5 | 1 5 4 Combat Bots Only 4 | . 4 4 Max Kills in Single Turn 3 | 1 2 3 Gunslinging . | . . . Exploded 3 | . 2 3 Melee 1 | . . 1 Uniques/NPCs Destroyed . | . . . Combat | -11 -10 -10 -------- Run | Yrd Mat Sub Hostile Shots Fired 117 | . 47 70 Missed 36 | . 15 21 Damage Taken 1545 | . 351 1194 Core 267 | . 52 215 Absorbed by Shields . | . . . Core Remaining (%) 100 | 100 . . Volleys Fired 109 | 4 43 62 Largest 2 | 2 1 2 Hottest 100 | 60 60 100 Shots Fired 133 | 8 43 82 Gun 32 | 8 12 12 Cannon 82 | . 25 57 Launcher 17 | . 6 11 Special 2 | . . 2 Kinetic 78 | 4 12 62 Thermal 49 | 4 25 20 Explosive 6 | . 6 . Electromagnetic . | . . . Robot Hit Streak 12 | 3 12 9 Robot Miss Streak 3 | 1 3 2 Penetration Max . | . . . Secondary Targets . | . . . Shots Hit Robots 76 | 6 26 44 Core Hits 55 | 2 31 22 Critical Kills . | . . . Critical Parts Destroyed . | . . . Critical Strikes . | . . . Melee Attacks 21 | . 3 18 Impact . | . . . Slashing 18 | . . 18 Piercing . | . . . Sneak Attacks 5 | . 2 3 Combat Hostiles . | . . . Follow-up Attacks . | . . . Damage Inflicted 3146 | 61 1083 2002 Guns 321 | 61 104 156 Cannons 723 | . 243 480 Explosions 1575 | . 690 885 Melee 481 | . . 481 Ramming 46 | . 46 . Kinetic 1474 | 16 104 1354 Thermal 455 | 45 243 167 Explosive 690 | . 690 . Electromagnetic . | . . . Impact . | . . . Slashing 481 | . . 481 Piercing . | . . . Highest Corruption . | . . . Average Corruption . | . . . Corruption Purged . | . . . Corruption Blocked . | . . . Overload Shots . | . . . Overflow Damage 217 | . 49 168 Projectiles . | . . . Explosions 108 | . 49 59 Melee 109 | . . 109 Knockbacks 3 | . . 3 Impact . | . . . Kinetic 3 | . . 3 Secondary . | . . . Self-Inflicted Damage 141 | . 30 111 Shots 4 | . 1 3 Rammed 7 | . 7 . Targets Rammed 8 | . 8 . Kicked . | . . . Crushed 1 | . 1 . Highest Temperature 171 | 20 171 2 Average Temperature 49 | 15 53 2 Received Heat Transfer 264 | . 135 129 Siege Activations . | . . . Robots Corrupted . | . . . Combat Hostiles . | . . . Parts Fried . | . . . Impact Corruptions . | . . . Robots Melted . | . . . Combat Hostiles . | . . . Parts Melted 1 | . . 1 Heat Transferred 951 | 100 518 333 Parts Sabotaged . | . . . Parts Stolen . | . . . Parts Stripped . | . . . Power Chain Reactions . | . . . Alert | -11 -10 -10 ------- Run | Yrd Mat Sub Peak Influence 245 | 10 245 . Initial 6 | . 6 . Average 65 | 4 68 . Maximum Alert Level 1 | . 1 . Low Security (%) 84 | 100 83 . Level 1 15 | . 16 . Level 2 . | . . . Level 3 . | . . . Level 4 . | . . . Level 5 . | . . . High Security . | . . . Max Security . | . . . Squads Dispatched 2 | . 2 . Investigation . | . . . Extermination . | . . . Reinforcement 2 | . 2 . Assault . | . . . Garrison . | . . . Intercept . | . . . Searches Triggered . | . . . Construction Impeded . | . . . Haulers Reinforced . | . . . Active Scanning Responses . | . . . Cargo Convoy Interrupts . | . . . Stealth | -11 -10 -10 --------- Run | Yrd Mat Sub Distress Signals . | . . . Communications Jammed . | . . . Distress Signals . | . . . Times Spotted 47 | . 22 25 Peak Tracking Total 6 | . 6 6 Tactical Retreats 1 | . . 1 Traps | -11 -10 -10 ------- Run | Yrd Mat Sub Traps Triggered 2 | . . 2 Indirectly . | . . . Trap Hack Attempts 41 | . 41 . Triggered . | . . . Disarmed . | . . . Reprogrammed 6 | . 6 . Reused 7 | . . 7 Traps Extracted 6 | . 6 . Installed 8 | . . 8 Triggered . | . . . Most Traps Carried 7 | . 6 7 Machines | -11 -10 -10 ---------- Run | Yrd Mat Sub Machines Disabled 6 | . 3 3 Max in Single Turn 3 | . 2 3 Machines Repaired . | . . . Machines Dismantled . | . . . Machines Sabotaged . | . . . Overloaded Fab Kills . | . . . Hacking | -11 -10 -10 --------- Run | Yrd Mat Sub Machines Accessed 5 | . 5 . Terminals 5 | . 5 . Fabricators . | . . . Repair Stations . | . . . Recycling Units . | . . . Scanalyzers . | . . . Garrison Access . | . . . Total Hacks 15 | . 15 . Successful 7 | . 7 . Failed 8 | . 8 . Catastrophic 1 | . 1 . Database Lockouts . | . . . Manual 8 | . 8 . Terminals 15 | . 15 . Fabricators . | . . . Repair Stations . | . . . Recycling Units . | . . . Scanalyzers . | . . . Garrison Access . | . . . Terminal Hacks 4 | . 4 . Locate Traps 3 | . 3 . Zone Layout 1 | . 1 . Fabricator Hacks . | . . . Repair Station Hacks . | . . . Recycling Unit Hacks . | . . . Scanalyzer . | . . . Garrison Access Hacks . | . . . Unauthorized Hacks 3 | . 3 . Terminals 3 | . 3 . Botnet 1 | . 1 . Disrupt 1 | . 1 . Operators 1 | . 1 . Fabricators . | . . . Repair Stations . | . . . Recycling Units . | . . . Scanalyzers . | . . . Garrison Access . | . . . Data Cores Recovered . | . . . Used . | . . . Hacking Detections 5 | . 5 . Full Trace Events . | . . . Feedback Events . | . . . Feedback Blocked . | . . . Robot Schematics Acquired . | . . . Robots Built . | . . . Authchips . | . . . Time . | . . . Total Robot Build Rating . | . . . Part Schematics Acquired . | . . . Parts Built . | . . . Authchips . | . . . Time . | . . . Total Part Build Rating . | . . . Parts Repaired . | . . . Time . | . . . Parts Recycled . | . . . Recycled Matter . | . . . Retrieved Matter . | . . . Retrieved Components . | . . . Parts Scanalyzed . | . . . Part Schematics Acquired . | . . . Parts Damaged . | . . . Bothacking | -11 -10 -10 ------------ Run | Yrd Mat Sub Used RIF Installer . | . . . Robots Hacked . | . . . Non-combat . | . . . Combat . | . . . Robot Hacks Applied . | . . . Relay Couplers Released . | . . . Fabnet Peak Effective % . | . . . Robots Rewired . | . . . Allies Hacked . | . . . Hacks Repelled . | . . . Allies | -11 -10 -10 -------- Run | Yrd Mat Sub Total Allies . | . . . Largest Group . | . . . Highest-Rated Group . | . . . Highest-Rated Ally . | . . . Total Orders . | . . . Ally Attacks . | . . . Total Damage . | . . . Kills . | . . . Allies Corrupted . | . . . Allies Melted . | . . . Intel | -11 -10 -10 ------- Run | Yrd Mat Sub Robot Analysis Total . | . . . Derelict Logs Recovered 1 | . . 1 Drone Launches . | . . . Drone Recoveries . | . . . Exploration | -11 -10 -10 ------------- Run | Yrd Mat Sub Turns Passed 5009 | 108 1987 2914 Spaces Moved 2351 | 54 648 1649 Core 4 | 4 . . Treads 2259 | 50 648 1561 Legs . | . . . Wheels 88 | . . 88 Hover . | . . . Flight . | . . . Fastest Speed 50 | 50 160 120 Average Speed 158 | 151 160 158 Slowest Speed 240 | 160 160 240 Overloaded Moves . | . . . Propulsion Burnouts . | . . . Robots Hopped . | . . . Cave-ins Triggered . | . . . Exploration Rate (%) 52 | 4 87 66 Regions Visited 2 Branch Regions 1 Pre-discovered Areas 1 | . . 1 Known Exits Taken . | . . . Unknown Exits Taken 2 | 1 1 . Scrap Searched 11 | . . 11 Spaces Dug 68 | . . 68 Terrain Destroyed 170 | . 23 147 Melee 3 | . . 3 Projectile 4 | . . 4 AOE 163 | . 23 140 Terrain Rammed . | . . . Walls Destroyed . | . . . Machines Disabled . | . . . Actions | -11 -10 -10 --------- Run | Yrd Mat Sub Total 3459 | 70 1550 1839 Wait 778 | . 751 27 Move 2349 | 53 647 1649 Hop . | . . . Pick Up 55 | 6 21 28 Fast Attach 12 | 6 . 6 Attach 5 | 1 1 3 Detach . | . . . Swap 35 | . 20 15 Drop 38 | . 15 23 Fire 109 | 4 43 62 Melee 21 | . 3 18 Ram . | . . . Kick . | . . . Crush 8 | . 8 . Escape Stasis . | . . . Rewire . | . . . Trap 49 | . 41 8 Miscellaneous . | . . . Route ------- -11/Scrapyard -10/Materials (discovered 4 exits: [*Mat x2] / [*Min] / [*Sub]) -10/Subcaves History --------- Turn | Location | Event 63 | -11/Scrapyard | Discovered new exit (range 15) 109 | -11/Scrapyard | Entered Materials 309 | -10/Materials | Build established: Mutant 394 | -10/Materials | Discovered new exit (range 10) 654 | -10/Materials | Discovered new exit (range 16) 879 | -10/Materials | Discovered new exit (range 10) 2093 | -10/Materials | Discovered new exit (range 3) 2096 | -10/Materials | Entered Subcaves 2229 | -10/Subcaves | Ambushed by swarm of Subdwellers 2301 | -10/Subcaves | Lost 3 allies 2328 | -10/Subcaves | Shifting Twisted Machinery released Sub. Laser 2359 | -10/Subcaves | Shifting Twisted Machinery released Sub. Beam Cannon 2406 | -10/Subcaves | Build established: Trapper-Mutant 2839 | -10/Subcaves | Shifting Twisted Machinery released Scrap Shield 2851 | -10/Subcaves | Learned location of Zion (-7) 2851 | -10/Subcaves | Met a Zionite searching for "candidates" 2860 | -10/Subcaves | Build established: Mutant 2895 | -10/Subcaves | Shifting Twisted Machinery released Barrage Gun 3104 | -10/Subcaves | Shifting Twisted Machinery released Sub. Machine Gun 3640 | -10/Subcaves | Learned 4 Materials zone layouts 3949 | -10/Subcaves | Core integrity fell below 50% 3953 | -10/Subcaves | Core integrity fell below 20% 4221 | -10/Subcaves | Ambushed by angry Subdweller bent on revenge 4430 | -10/Subcaves | Disturbed a concealed Subdweller 5010 | -10/Subcaves | Destroyed by NK-PWH(R) with Subdweller Machine Gun Last Messages --------------- 04448_ K1-780(R) triggered Shrapnel Trap. 04448_ An expanding cloud of shrapnel blasts out in all directions. 04448_ Searching scrap... 04448_ Found Sub. Machine Gun. 04448_ Found 34 Matter. 04450_ Searching scrap... 04450_ Found Sub. Power Source. 04450_ Found 13 Matter. 04499_ Destroyed Lgt. Ion Engine. 04505_ S-10 Pest destroyed. 04513_ Lgt. Assault Rifle fries itself beyond repair. 04517_ Flight Unit fries itself beyond repair. 04709_ Acquired 29 matter. 04717_ Dropped Wheel. 04717_ Acquired Mak. Leg. 04814_ Acquired 31 matter. 05001_ Destroyed Scrap Shield. 05008_ 5T-18V(R) destroyed. 05008_ Seismic Detector destroyed. 05008_ Destroyed Seismic Detector. Map ----- +----------------------------------------------------+ | ??????????????????????????????????????????????##"" | | ???????????????????????????????????????????????# # | | ??????????????????????????????????????????????? ? | | ??????????????????????????????????????????????? ? | | ??????????????????????????????????????????????? ? | | ??????????????????????????????????????????????? ? | | ???????????????????????????????????????????????##? | | ?????????????????????????????????????????????????? | | ?????????????????????????????????????????????????? | | ?????????????????????????????????????????????????? | | ?????????????????????????????????????????????????? | | ?????????????????????????????????????????????????? | | ??????????????????????????????##?????????????????? | | ????????????????##???#??????? #?????????????????? | | ?????????????? ? #### ?????? ??????????????????? | | ?????????????? ? ?????? ??????????????????? | | ????????????? R ????? ???????????????????? | | ????????????? ???? ???????????????????? | | ???????????? ???# ????????????????????? | | ???????????? # ### ??????????????####??? | | ???????????? #; ?????????????## ##?? | | ??????????? ????????????## #?? | | ??????????? #??????####### #?? | | ?????????? !;;######## ## #### | | ??????????# &;;## # # ### | | ???????????#; ]@ ### | | ?????????????# #?# | | ?????????????# ;;; # ### | | ????????????# ## ######## | | ????????????## ???## ??#### ### | | ?????????????#???????# #### #?# | | ?????????????????????## ### ##?## ### | | ??????????????????????###??#### ##???#####?# | | ??????????????????????????????#########??????????? | | ?????????????????????????????????????????????????? | | ?????????????????????????????????????????????????? | | ?????????????????????????????????????????????????? | | ?????????????????????????????????????????????????? | | ?????????????????????????????????????????????????? | | ?????????????????????????????????????????????????? | | ?????????????????????????????????????????????????? | | ?????????????????????????????????????????????????? | | ?????????????????????????????????????????????????? | | ?????????????????????????????????????????????????? | | ?????????????????????????????????????????????????? | | ?????????????????????????????????????????????????? | | ?????????????????????????????????????????????????? | | ?????????????????????????????????????????????????? | | | | | +----------------------------------------------------+ Best States ------------- Heat Dissipation 35 Energy Generation 15 Energy Capacity 170 Matter Stores 300 Matter Capacity 300 Sight Range 16 Terrain Scan Density 10 Armor Coverage 800 Evasion (%) 40 Recoil Reduction 2 Trap Extractor Capacity 4 Item Schematics ----------------- None Robot Schematics ------------------ None Fabricated ------------ Nothing Alien Tech Used ----------------- None Achievements -------------- None Challenges ------------ None Game ------ Seed PlasmaSlugShifter Manual? 0 Play Time 00:26:15 Cumulative 760.0 hours Start 2024.03.05 @ 14:01:39 End 2024.03.05 @ 14:23:19 Sessions 1 Manual Loads 0 Difficulty Rogue Special Mode None Game No. 703 Rogue 703 Adventurer 0 Explorer 0 Win Type - Total 39 Types 14/4/11/2/0/0/5/2/1 Lore% 93 Gallery% 95 Achievement% 84 Wizard Run 0 Options --------- Layout 0 ASCII 0 Keyboard 0 Movement Numpad Keybinds 0 Fullscreen 1 Font 18/Smallcaps Map View 76x50 Zoom Use 0% Tactical HUD 1 Map Filters NONE Filters NONE Steam 1 RUN: 1e4111b0-bc74-47b1-9ebc-6c3aa713043d